[Event "Titled Tuesday Blitz June 27 Late 2023"]
[White "zano2023"]
[Black "szachmistrz2500"]
[WhiteElo "2187"]
[BlackElo "2448"]
[Result "1/2-1/2"]
[Round "10"]
[TimeControl "180+2"]
[Date "2023.06.27"]
[WhiteClock "0:00:50"]
[BlackClock "0:01:20"]
[Board "80"]

1. d4 {[%clk 0:03:00]}  Nf6 {[%clk 0:02:58]} 2. Nd2 {[%clk 0:03:00]}  g6 {[%clk 0:02:59]} 3. e4 {[%clk 0:03:00]}  d6 {[%clk 0:02:58]} 4. Ngf3 {[%clk 0:03:00]}  Bg7 {[%clk 0:02:59]} 5. Bd3 {[%clk 0:03:00]}  Nbd7 {[%clk 0:02:56]} 6. O-O {[%clk 0:03:01]}  e5 {[%clk 0:02:56]} 7. c3 {[%clk 0:03:01]}  O-O {[%clk 0:02:56]} 8. Re1 {[%clk 0:03:00]}  Nh5 {[%clk 0:02:54]} 9. Nf1 {[%clk 0:02:53]}  c6 {[%clk 0:02:53]} 10. Ng3 {[%clk 0:02:51]}  Nf4 {[%clk 0:02:51]} 11. Bc2 {[%clk 0:02:50]}  Qe7 {[%clk 0:02:48]} 12. Be3 {[%clk 0:02:50]}  Nf6 {[%clk 0:02:45]} 13. Qd2 {[%clk 0:02:47]}  N6h5 {[%clk 0:02:43]} 14. Nxh5 {[%clk 0:02:47]}  Nxh5 {[%clk 0:02:43]} 15. Rad1 {[%clk 0:02:43]}  Bg4 {[%clk 0:02:41]} 16. Qe2 {[%clk 0:02:29]}  Qf6 {[%clk 0:02:35]} 17. h3 {[%clk 0:02:25]}  Bxf3 {[%clk 0:02:35]} 18. Qxf3 {[%clk 0:02:24]}  Qxf3 {[%clk 0:02:35]} 19. gxf3 {[%clk 0:02:24]}  Rad8 {[%clk 0:02:23]} 20. dxe5 {[%clk 0:02:11]}  dxe5 {[%clk 0:02:21]} 21. Bxa7 {[%clk 0:02:07]}  Ra8 {[%clk 0:02:20]} 22. Bc5 {[%clk 0:02:06]}  Rfe8 {[%clk 0:02:21]} 23. a3 {[%clk 0:02:06]}  Nf4 {[%clk 0:02:21]} 24. Kh2 {[%clk 0:02:03]}  Rad8 {[%clk 0:02:18]} 25. Be3 {[%clk 0:02:03]}  Ne6 {[%clk 0:02:17]} 26. Bb3 {[%clk 0:02:00]}  Bf6 {[%clk 0:02:15]} 27. Bxe6 {[%clk 0:01:58]}  Rxe6 {[%clk 0:02:15]} 28. Rxd8+ {[%clk 0:01:57]}  Bxd8 {[%clk 0:02:15]} 29. Rd1 {[%clk 0:01:57]}  Bh4 {[%clk 0:02:08]} 30. Rd7 {[%clk 0:01:56]}  b5 {[%clk 0:02:08]} 31. Bc5 {[%clk 0:01:53]}  f5 {[%clk 0:02:04]} 32. Kg2 {[%clk 0:01:50]}  fxe4 {[%clk 0:01:58]} 33. fxe4 {[%clk 0:01:50]}  Rf6 {[%clk 0:01:58]} 34. f3 {[%clk 0:01:50]}  Rf7 {[%clk 0:01:56]} 35. Rd6 {[%clk 0:01:41]}  Rc7 {[%clk 0:01:44]} 36. Re6 {[%clk 0:01:39]}  Rd7 {[%clk 0:01:44]} 37. Rd6 {[%clk 0:01:31]}  Rc7 {[%clk 0:01:44]} 38. Be3 {[%clk 0:01:25]}  Kf7 {[%clk 0:01:41]} 39. f4 {[%clk 0:01:25]}  Be7 {[%clk 0:01:37]} 40. Rd3 {[%clk 0:01:22]}  Ke6 {[%clk 0:01:37]} 41. fxe5 {[%clk 0:01:17]}  Kxe5 {[%clk 0:01:37]} 42. Kf3 {[%clk 0:01:16]}  Rc8 {[%clk 0:01:37]} 43. Bf4+ {[%clk 0:01:16]}  Ke6 {[%clk 0:01:37]} 44. e5 {[%clk 0:01:09]}  g5 {[%clk 0:01:31]} 45. Bg3 {[%clk 0:01:08]}  Rf8+ {[%clk 0:01:31]} 46. Kg2 {[%clk 0:01:07]}  h5 {[%clk 0:01:28]} 47. Rd2 {[%clk 0:01:00]}  Ra8 {[%clk 0:01:24]} 48. Rd3 {[%clk 0:00:57]}  Rf8 {[%clk 0:01:23]} 49. Rd2 {[%clk 0:00:57]}  Ra8 {[%clk 0:01:23]} 50. Kh2 {[%clk 0:00:51]}  Rf8 {[%clk 0:01:20]} 51. Kg2 {[%clk 0:00:50]} 1/2-1/2


[Site "https://www.chess.com"]

[Event "Titled Tuesday Blitz June 27 Late 2023"]
[White "Schuster, Karsten"]
[Black "Howell, David W L"]
[WhiteFideId "4611071"]
[BlackFideId "410608"]
[WhiteElo "2356"]
[BlackElo "2994"]
[Result "0-1"]
[Round "10"]
[TimeControl "180+2"]
[Date "2023.06.27"]
[WhiteClock "0:00:17"]
[BlackClock "0:00:30"]
[Board "81"]

1. d4 {[%clk 0:03:00]}  e6 {[%clk 0:02:56]} 2. c4 {[%clk 0:03:00]}  Bb4+ {[%clk 0:02:55]} 3. Nc3 {[%clk 0:03:00]}  b6 {[%clk 0:02:48]} 4. Qc2 {[%clk 0:02:59]}  Bb7 {[%clk 0:02:46]} 5. f3 {[%clk 0:02:58]}  Qh4+ {[%clk 0:02:45]} 6. g3 {[%clk 0:02:54]}  Qxd4 {[%clk 0:02:46]} 7. e4 {[%clk 0:02:49]}  Nc6 {[%clk 0:02:25]} 8. Bd2 {[%clk 0:02:47]}  f5 {[%clk 0:02:16]} 9. exf5 {[%clk 0:02:41]}  Qe5+ {[%clk 0:02:14]} 10. Be2 {[%clk 0:02:35]}  Nd4 {[%clk 0:02:10]} 11. Qd3 {[%clk 0:02:35]}  Nxf5 {[%clk 0:02:03]} 12. O-O-O {[%clk 0:02:30]}  O-O-O {[%clk 0:01:51]} 13. Bf4 {[%clk 0:02:15]}  Qf6 {[%clk 0:01:39]} 14. Nb5 {[%clk 0:02:14]}  e5 {[%clk 0:01:38]} 15. Be3 {[%clk 0:01:59]}  Nxe3 {[%clk 0:01:34]} 16. Qxe3 {[%clk 0:01:59]}  a6 {[%clk 0:01:33]} 17. Nc3 {[%clk 0:01:58]}  Ne7 {[%clk 0:01:33]} 18. Nh3 {[%clk 0:01:47]}  Nf5 {[%clk 0:01:20]} 19. Qd3 {[%clk 0:01:39]}  Nd4 {[%clk 0:01:19]} 20. Ne4 {[%clk 0:01:27]}  Qh6+ {[%clk 0:01:16]} 21. Nhg5 {[%clk 0:01:20]}  Bxe4 {[%clk 0:01:08]} 22. Qxe4 {[%clk 0:01:19]}  Qxg5+ {[%clk 0:01:08]} 23. f4 {[%clk 0:01:19]}  Nxe2+ {[%clk 0:01:01]} 24. Kb1 {[%clk 0:00:47]}  Qg6 {[%clk 0:00:59]} 25. f5 {[%clk 0:00:46]}  Qc6 {[%clk 0:00:57]} 26. Qxe2 {[%clk 0:00:46]}  Rhe8 {[%clk 0:00:57]} 27. Rd5 {[%clk 0:00:43]}  Kb8 {[%clk 0:00:57]} 28. Rhd1 {[%clk 0:00:43]}  d6 {[%clk 0:00:56]} 29. a3 {[%clk 0:00:40]}  Bc5 {[%clk 0:00:56]} 30. b4 {[%clk 0:00:40]}  Bd4 {[%clk 0:00:56]} 31. b5 {[%clk 0:00:41]}  axb5 {[%clk 0:00:46]} 32. Rxb5 {[%clk 0:00:40]}  Kb7 {[%clk 0:00:45]} 33. a4 {[%clk 0:00:33]}  Ra8 {[%clk 0:00:35]} 34. Qc2 {[%clk 0:00:17]}  Ra6 {[%clk 0:00:30]} 0-1


[Site "https://www.chess.com"]

[Event "Titled Tuesday Blitz June 27 Late 2023"]
[White "Cardozo Munar, Carlos Eduardo"]
[Black "Peycheva, Gergana"]
[WhiteFideId "4409477"]
[BlackFideId "2916711"]
[WhiteElo "2329"]
[BlackElo "2502"]
[Result "0-1"]
[Round "10"]
[TimeControl "180+2"]
[Date "2023.06.27"]
[WhiteClock "0:00:03"]
[BlackClock "0:01:37"]
[Board "82"]

1. d4 {[%clk 0:00:36]}  Nf6 {[%clk 0:02:58]} 2. Bg5 {[%clk 0:00:35]}  e6 {[%clk 0:02:58]} 3. e4 {[%clk 0:00:34]}  h6 {[%clk 0:02:59]} 4. Bxf6 {[%clk 0:00:33]}  Qxf6 {[%clk 0:02:59]} 5. c3 {[%clk 0:00:34]}  Qd8 {[%clk 0:03:00]} 6. Nd2 {[%clk 0:00:34]}  d5 {[%clk 0:03:01]} 7. Ngf3 {[%clk 0:00:33]}  c5 {[%clk 0:03:01]} 8. exd5 {[%clk 0:00:31]}  exd5 {[%clk 0:03:00]} 9. Bb5+ {[%clk 0:00:29]}  Nc6 {[%clk 0:03:00]} 10. O-O {[%clk 0:00:29]}  Be7 {[%clk 0:03:00]} 11. Re1 {[%clk 0:00:29]}  O-O {[%clk 0:03:00]} 12. Qa4 {[%clk 0:00:27]}  Bd7 {[%clk 0:02:56]} 13. dxc5 {[%clk 0:00:23]}  Bxc5 {[%clk 0:02:55]} 14. Rad1 {[%clk 0:00:24]}  a6 {[%clk 0:02:53]} 15. Bxc6 {[%clk 0:00:20]}  Bxc6 {[%clk 0:02:54]} 16. Qg4 {[%clk 0:00:20]}  Qf6 {[%clk 0:02:47]} 17. Nb3 {[%clk 0:00:18]}  Ba7 {[%clk 0:02:46]} 18. Nbd4 {[%clk 0:00:17]}  Rad8 {[%clk 0:02:44]} 19. Nxc6 {[%clk 0:00:16]}  bxc6 {[%clk 0:02:43]} 20. Nd4 {[%clk 0:00:17]}  c5 {[%clk 0:02:37]} 21. Nf5 {[%clk 0:00:17]}  d4 {[%clk 0:02:37]} 22. cxd4 {[%clk 0:00:17]}  cxd4 {[%clk 0:02:37]} 23. Re4 {[%clk 0:00:15]}  d3 {[%clk 0:02:35]} 24. Rd2 {[%clk 0:00:15]}  Bc5 {[%clk 0:02:09]} 25. h4 {[%clk 0:00:15]}  Rd5 {[%clk 0:01:59]} 26. Rf4 {[%clk 0:00:15]}  Qg6 {[%clk 0:01:50]} 27. Qf3 {[%clk 0:00:11]}  Rfd8 {[%clk 0:01:49]} 28. h5 {[%clk 0:00:11]}  Qg5 {[%clk 0:01:46]} 29. Rd1 {[%clk 0:00:06]}  d2 {[%clk 0:01:42]} 30. Re4 {[%clk 0:00:05]}  Qxf5 {[%clk 0:01:42]} 31. Qe2 {[%clk 0:00:05]}  Bxf2+ {[%clk 0:01:38]} 32. Kh1 {[%clk 0:00:05]}  Qxh5+ {[%clk 0:01:36]} 33. Qxh5 {[%clk 0:00:04]}  Rxh5+ {[%clk 0:01:37]} 34. Rh4 {[%clk 0:00:03]}  Rxh4# {[%clk 0:01:37]} 0-1


[Site "https://www.chess.com"]

[Event "Titled Tuesday Blitz June 27 Late 2023"]
[White "MAHanif"]
[Black "Toniutti, Ezio"]
[BlackFideId "113034"]
[WhiteElo "2328"]
[BlackElo "2463"]
[Result "0-1"]
[Round "10"]
[TimeControl "180+2"]
[Date "2023.06.27"]
[WhiteClock "0:00:00"]
[BlackClock "0:00:24"]
[Board "83"]

1. Nf3 {[%clk 0:03:00]}  d5 {[%clk 0:03:00]} 2. g3 {[%clk 0:03:01]}  c6 {[%clk 0:03:00]} 3. Bg2 {[%clk 0:03:01]}  Nf6 {[%clk 0:03:01]} 4. O-O {[%clk 0:03:00]}  Bf5 {[%clk 0:03:01]} 5. d3 {[%clk 0:03:01]}  e6 {[%clk 0:03:02]} 6. Nbd2 {[%clk 0:03:01]}  Be7 {[%clk 0:03:01]} 7. Re1 {[%clk 0:03:02]}  O-O {[%clk 0:03:00]} 8. e4 {[%clk 0:03:03]}  dxe4 {[%clk 0:03:00]} 9. dxe4 {[%clk 0:03:03]}  Nxe4 {[%clk 0:03:00]} 10. Qe2 {[%clk 0:02:43]}  Nf6 {[%clk 0:02:53]} 11. c3 {[%clk 0:02:40]}  Nbd7 {[%clk 0:02:52]} 12. Nd4 {[%clk 0:02:39]}  Re8 {[%clk 0:02:47]} 13. Nxf5 {[%clk 0:02:38]}  exf5 {[%clk 0:02:47]} 14. Qd3 {[%clk 0:02:32]}  g6 {[%clk 0:02:42]} 15. Qc2 {[%clk 0:02:32]}  Nc5 {[%clk 0:02:28]} 16. Nf3 {[%clk 0:02:22]}  Qd3 {[%clk 0:02:20]} 17. Qe2 {[%clk 0:02:17]}  Rad8 {[%clk 0:02:10]} 18. Be3 {[%clk 0:02:15]}  Bf8 {[%clk 0:01:57]} 19. Bf1 {[%clk 0:02:09]}  Qd7 {[%clk 0:01:31]} 20. Rad1 {[%clk 0:02:02]}  Qc7 {[%clk 0:01:30]} 21. Qc4 {[%clk 0:01:59]}  Nce4 {[%clk 0:01:27]} 22. Nd4 {[%clk 0:01:51]}  Nd5 {[%clk 0:01:20]} 23. Bc1 {[%clk 0:01:47]}  Bg7 {[%clk 0:01:14]} 24. Bg2 {[%clk 0:01:44]}  Qb6 {[%clk 0:00:58]} 25. Qb3 {[%clk 0:01:24]}  Qxb3 {[%clk 0:00:45]} 26. axb3 {[%clk 0:01:21]}  Ndxc3 {[%clk 0:00:32]} 27. bxc3 {[%clk 0:01:19]}  Nxc3 {[%clk 0:00:32]} 28. Rxe8+ {[%clk 0:01:09]}  Rxe8 {[%clk 0:00:32]} 29. Rf1 {[%clk 0:00:17]}  Bxd4 {[%clk 0:00:30]} 30. b4 {[%clk 0:00:13]}  Ne2+ {[%clk 0:00:29]} 31. Kh1 {[%clk 0:00:12]}  Nc3 {[%clk 0:00:27]} 32. Be3 {[%clk 0:00:04]}  Bxe3 {[%clk 0:00:26]} 33. Re1 {[%clk 0:00:04]}  Nd5 {[%clk 0:00:23]} 34. Bxd5 {[%clk 0:00:03]}  cxd5 {[%clk 0:00:24]} 35. fxe3 {[%clk 0:00:00]}  d4 {[%clk 0:00:24]} 0-1


[Site "https://www.chess.com"]

[Event "Titled Tuesday Blitz June 27 Late 2023"]
[White "Prydun, Andriy"]
[Black "StarkyNZ"]
[WhiteFideId "14145898"]
[WhiteElo "2398"]
[BlackElo "2276"]
[Result "1-0"]
[Round "10"]
[TimeControl "180+2"]
[Date "2023.06.27"]
[WhiteClock "0:01:29"]
[BlackClock "0:01:20"]
[Board "86"]

1. e4 {[%clk 0:02:57]}  c6 {[%clk 0:02:59]} 2. d4 {[%clk 0:02:55]}  d5 {[%clk 0:03:00]} 3. e5 {[%clk 0:02:56]}  Bf5 {[%clk 0:03:00]} 4. Bd3 {[%clk 0:02:56]}  Bxd3 {[%clk 0:02:59]} 5. cxd3 {[%clk 0:02:57]}  e6 {[%clk 0:02:55]} 6. Nc3 {[%clk 0:02:57]}  Nd7 {[%clk 0:02:55]} 7. Nf3 {[%clk 0:02:56]}  Ne7 {[%clk 0:02:55]} 8. O-O {[%clk 0:02:55]}  Ng6 {[%clk 0:02:55]} 9. Rb1 {[%clk 0:02:52]}  f6 {[%clk 0:02:49]} 10. exf6 {[%clk 0:02:35]}  Qxf6 {[%clk 0:02:48]} 11. b4 {[%clk 0:02:31]}  Bd6 {[%clk 0:02:46]} 12. b5 {[%clk 0:02:28]}  O-O {[%clk 0:02:45]} 13. bxc6 {[%clk 0:02:28]}  bxc6 {[%clk 0:02:46]} 14. Ne2 {[%clk 0:02:12]}  Rab8 {[%clk 0:02:28]} 15. Bg5 {[%clk 0:02:11]}  Qf5 {[%clk 0:02:24]} 16. Rc1 {[%clk 0:02:06]}  Rb6 {[%clk 0:02:21]} 17. a4 {[%clk 0:02:03]}  Bb8 {[%clk 0:02:15]} 18. a5 {[%clk 0:02:01]}  Ra6 {[%clk 0:02:02]} 19. Qd2 {[%clk 0:01:43]}  Qg4 {[%clk 0:01:55]} 20. h3 {[%clk 0:01:35]}  Qh5 {[%clk 0:01:51]} 21. Ng3 {[%clk 0:01:29]}  Bxg3 {[%clk 0:01:36]} 22. fxg3 {[%clk 0:01:30]}  h6 {[%clk 0:01:20]} 23. g4 {[%clk 0:01:29]} 1-0


[Site "https://www.chess.com"]

[Event "Titled Tuesday Blitz June 27 Late 2023"]
[White "Kohler, Aran"]
[Black "Arnold, Ken"]
[WhiteFideId "1002856"]
[BlackFideId "2056836"]
[WhiteElo "2262"]
[BlackElo "2392"]
[Result "0-1"]
[Round "10"]
[TimeControl "180+2"]
[Date "2023.06.27"]
[WhiteClock "0:00:00"]
[BlackClock "0:00:14"]
[Board "87"]

1. d4 {[%clk 0:03:00]}  Nf6 {[%clk 0:02:59]} 2. c3 {[%clk 0:03:01]}  g6 {[%clk 0:02:59]} 3. Bg5 {[%clk 0:03:01]}  d5 {[%clk 0:03:00]} 4. Nd2 {[%clk 0:03:01]}  Bg7 {[%clk 0:03:00]} 5. Bxf6 {[%clk 0:03:00]}  exf6 {[%clk 0:03:00]} 6. e4 {[%clk 0:03:00]}  dxe4 {[%clk 0:03:00]} 7. Nxe4 {[%clk 0:03:01]}  O-O {[%clk 0:02:58]} 8. Be2 {[%clk 0:02:58]}  Re8 {[%clk 0:02:57]} 9. Nd2 {[%clk 0:02:55]}  c5 {[%clk 0:02:56]} 10. dxc5 {[%clk 0:02:34]}  Bf5 {[%clk 0:02:55]} 11. Ndf3 {[%clk 0:02:24]}  Qc7 {[%clk 0:02:51]} 12. Qd6 {[%clk 0:02:07]}  Na6 {[%clk 0:02:37]} 13. Qxc7 {[%clk 0:02:05]}  Nxc7 {[%clk 0:02:35]} 14. Nd4 {[%clk 0:01:53]}  Bd3 {[%clk 0:02:32]} 15. Kd2 {[%clk 0:01:52]}  Bxe2 {[%clk 0:02:30]} 16. Ngxe2 {[%clk 0:01:52]}  Rad8 {[%clk 0:02:29]} 17. Kc2 {[%clk 0:01:51]}  f5 {[%clk 0:02:09]} 18. Rad1 {[%clk 0:01:47]}  Rd5 {[%clk 0:02:02]} 19. b4 {[%clk 0:01:46]}  Rde5 {[%clk 0:01:59]} 20. Rd2 {[%clk 0:01:44]}  Nd5 {[%clk 0:01:53]} 21. f4 {[%clk 0:01:38]}  Ne3+ {[%clk 0:01:52]} 22. Kb3 {[%clk 0:01:31]}  Re4 {[%clk 0:01:48]} 23. g3 {[%clk 0:01:31]}  Ng4 {[%clk 0:01:23]} 24. h3 {[%clk 0:01:24]}  Nf6 {[%clk 0:01:14]} 25. Rf1 {[%clk 0:01:21]}  R4e7 {[%clk 0:01:09]} 26. Rc2 {[%clk 0:01:19]}  a6 {[%clk 0:01:07]} 27. Rf2 {[%clk 0:01:17]}  h5 {[%clk 0:01:06]} 28. Rg2 {[%clk 0:01:17]}  Nd5 {[%clk 0:01:06]} 29. Rh2 {[%clk 0:01:13]}  Re3 {[%clk 0:01:05]} 30. Kc4 {[%clk 0:01:09]}  Nc7 {[%clk 0:00:45]} 31. Rd2 {[%clk 0:01:04]}  R8e4 {[%clk 0:00:42]} 32. Kb3 {[%clk 0:00:58]}  Bxd4 {[%clk 0:00:34]} 33. Nxd4 {[%clk 0:00:55]}  Rxg3 {[%clk 0:00:33]} 34. c6 {[%clk 0:00:51]}  bxc6 {[%clk 0:00:32]} 35. Nxc6 {[%clk 0:00:51]}  Nb5 {[%clk 0:00:31]} 36. Rd8+ {[%clk 0:00:29]}  Kg7 {[%clk 0:00:30]} 37. Rc2 {[%clk 0:00:16]}  Ree3 {[%clk 0:00:30]} 38. Ka4 {[%clk 0:00:09]}  Nxc3+ {[%clk 0:00:29]} 39. Ka5 {[%clk 0:00:09]}  Ne4 {[%clk 0:00:21]} 40. Kxa6 {[%clk 0:00:08]}  Rxh3 {[%clk 0:00:20]} 41. b5 {[%clk 0:00:07]}  Rc3 {[%clk 0:00:18]} 42. Rxc3 {[%clk 0:00:07]}  Rxc3 {[%clk 0:00:19]} 43. Ne5 {[%clk 0:00:06]}  Nc5+ {[%clk 0:00:18]} 44. Kb6 {[%clk 0:00:05]}  Na4+ {[%clk 0:00:16]} 45. Ka5 {[%clk 0:00:05]}  Ra3 {[%clk 0:00:16]} 46. Kb4 {[%clk 0:00:05]}  Rxa2 {[%clk 0:00:16]} 47. Nc4 {[%clk 0:00:02]}  Ra1 {[%clk 0:00:16]} 48. Rd7 {[%clk 0:00:02]}  h4 {[%clk 0:00:15]} 49. Ne5 {[%clk 0:00:02]}  h3 {[%clk 0:00:15]} 50. Rxf7+ {[%clk 0:00:02]}  Kg8 {[%clk 0:00:15]} 51. Rd7 {[%clk 0:00:01]}  h2 {[%clk 0:00:16]} 52. Nxg6 {[%clk 0:00:01]}  h1=Q {[%clk 0:00:15]} 53. Ne7+ {[%clk 0:00:01]}  Kf8 {[%clk 0:00:15]} 54. Ng6+ {[%clk 0:00:02]}  Ke8 {[%clk 0:00:15]} 55. Re7+ {[%clk 0:00:02]}  Kd8 {[%clk 0:00:15]} 56. Re3 {[%clk 0:00:00]}  Qb1+ {[%clk 0:00:14]} 0-1


[Site "https://www.chess.com"]

[Event "Titled Tuesday Blitz June 27 Late 2023"]
[White "Bueno, Alfeu Junior Varela"]
[Black "Romero Ruscalleda, Josep"]
[WhiteFideId "2108879"]
[BlackFideId "2231859"]
[WhiteElo "2380"]
[BlackElo "2374"]
[Result "0-1"]
[Round "10"]
[TimeControl "180+2"]
[Date "2023.06.27"]
[WhiteClock "0:00:00"]
[BlackClock "0:00:18"]
[Board "88"]

1. e4 {[%clk 0:03:00]}  g6 {[%clk 0:03:00]} 2. Nc3 {[%clk 0:02:59]}  Bg7 {[%clk 0:03:00]} 3. f4 {[%clk 0:02:59]}  d6 {[%clk 0:03:01]} 4. Nf3 {[%clk 0:03:00]}  c5 {[%clk 0:03:01]} 5. Bb5+ {[%clk 0:03:00]}  Bd7 {[%clk 0:03:00]} 6. O-O {[%clk 0:03:00]}  Nc6 {[%clk 0:02:58]} 7. d3 {[%clk 0:02:58]}  a6 {[%clk 0:02:57]} 8. Bxc6 {[%clk 0:02:58]}  Bxc6 {[%clk 0:02:57]} 9. f5 {[%clk 0:02:55]}  Nf6 {[%clk 0:02:54]} 10. Qe1 {[%clk 0:02:54]}  Qd7 {[%clk 0:02:48]} 11. Qh4 {[%clk 0:02:53]}  gxf5 {[%clk 0:02:43]} 12. Bh6 {[%clk 0:02:50]}  Rg8 {[%clk 0:02:37]} 13. e5 {[%clk 0:02:33]}  Ng4 {[%clk 0:02:12]} 14. Bxg7 {[%clk 0:01:56]}  Rxg7 {[%clk 0:02:11]} 15. exd6 {[%clk 0:01:31]}  Qxd6 {[%clk 0:01:54]} 16. Rae1 {[%clk 0:01:30]}  Bxf3 {[%clk 0:01:31]} 17. Rxf3 {[%clk 0:01:24]}  O-O-O {[%clk 0:01:12]} 18. h3 {[%clk 0:00:28]}  Qh2+ {[%clk 0:01:04]} 19. Kf1 {[%clk 0:00:22]}  Qh1+ {[%clk 0:01:00]} 20. Ke2 {[%clk 0:00:22]}  Qxg2+ {[%clk 0:01:00]} 21. Rf2 {[%clk 0:00:19]}  Nxf2 {[%clk 0:00:57]} 22. Qxf2 {[%clk 0:00:20]}  Qxh3 {[%clk 0:00:54]} 23. Kd1 {[%clk 0:00:13]}  Qg4+ {[%clk 0:00:35]} 24. Kc1 {[%clk 0:00:09]}  Qd4 {[%clk 0:00:30]} 25. Qxf5+ {[%clk 0:00:08]}  e6 {[%clk 0:00:30]} 26. Qf1 {[%clk 0:00:05]}  Rdg8 {[%clk 0:00:27]} 27. Ne2 {[%clk 0:00:04]}  Qe3+ {[%clk 0:00:26]} 28. Kb1 {[%clk 0:00:02]}  Kb8 {[%clk 0:00:22]} 29. a4 {[%clk 0:00:02]}  Ka7 {[%clk 0:00:21]} 30. Nf4 {[%clk 0:00:01]}  Qxe1+ {[%clk 0:00:18]} 31. Qxe1 {[%clk 0:00:01]}  Rg1 {[%clk 0:00:19]} 32. Qxg1 {[%clk 0:00:02]}  Rxg1+ {[%clk 0:00:18]} 33. Ka2 {[%clk 0:00:03]}  e5 {[%clk 0:00:18]} 34. Nh5 {[%clk 0:00:02]}  f5 {[%clk 0:00:17]} 35. Kb3 {[%clk 0:00:02]}  f4 {[%clk 0:00:17]} 36. Kc3 {[%clk 0:00:02]}  f3 {[%clk 0:00:17]} 37. Kd2 {[%clk 0:00:02]}  f2 {[%clk 0:00:18]} 38. Ng3 {[%clk 0:00:03]}  f1=Q {[%clk 0:00:17]} 39. Nxf1 {[%clk 0:00:02]}  Rxf1 {[%clk 0:00:18]} 40. d4 {[%clk 0:00:00]}  exd4 {[%clk 0:00:18]} 0-1


[Site "https://www.chess.com"]

[Event "Titled Tuesday Blitz June 27 Late 2023"]
[White "Roman, Rodrigo"]
[Black "reevecanada"]
[WhiteFideId "3701220"]
[WhiteElo "2327"]
[BlackElo "2589"]
[Result "0-1"]
[Round "10"]
[TimeControl "180+2"]
[Date "2023.06.27"]
[WhiteClock "0:00:07"]
[BlackClock "0:01:47"]
[Board "90"]

1. e4 {[%clk 0:03:00]}  c5 {[%clk 0:02:58]} 2. Nf3 {[%clk 0:02:57]}  d6 {[%clk 0:02:57]} 3. d4 {[%clk 0:02:55]}  cxd4 {[%clk 0:02:57]} 4. Nxd4 {[%clk 0:02:56]}  Nf6 {[%clk 0:02:56]} 5. Nc3 {[%clk 0:02:56]}  a6 {[%clk 0:02:56]} 6. Bg5 {[%clk 0:02:55]}  e6 {[%clk 0:02:55]} 7. f4 {[%clk 0:02:54]}  Be7 {[%clk 0:02:55]} 8. Qf3 {[%clk 0:02:54]}  Qc7 {[%clk 0:02:55]} 9. O-O-O {[%clk 0:02:54]}  Nbd7 {[%clk 0:02:54]} 10. Bd3 {[%clk 0:02:53]}  b5 {[%clk 0:02:47]} 11. Rhe1 {[%clk 0:02:53]}  Bb7 {[%clk 0:02:46]} 12. Qg3 {[%clk 0:02:52]}  Rc8 {[%clk 0:02:42]} 13. e5 {[%clk 0:02:43]}  dxe5 {[%clk 0:02:40]} 14. fxe5 {[%clk 0:02:42]}  Nd5 {[%clk 0:02:40]} 15. Nxd5 {[%clk 0:02:34]}  Bxd5 {[%clk 0:02:39]} 16. Bxe7 {[%clk 0:02:27]}  Kxe7 {[%clk 0:02:38]} 17. Qxg7 {[%clk 0:02:11]}  Rcg8 {[%clk 0:02:30]} 18. Qh6 {[%clk 0:02:10]}  Nxe5 {[%clk 0:02:29]} 19. Qh4+ {[%clk 0:01:35]}  f6 {[%clk 0:02:25]} 20. Re3 {[%clk 0:01:16]}  Rxg2 {[%clk 0:02:16]} 21. Rf1 {[%clk 0:01:10]}  Rf8 {[%clk 0:02:01]} 22. Qxh7+ {[%clk 0:01:03]}  Rf7 {[%clk 0:02:01]} 23. Qh3 {[%clk 0:00:47]}  Rxh2 {[%clk 0:01:53]} 24. Nf5+ {[%clk 0:00:22]}  Kd7 {[%clk 0:01:48]} 25. Ng3 {[%clk 0:00:07]}  Rxh3 {[%clk 0:01:47]} 0-1


[Site "https://www.chess.com"]

[Event "Titled Tuesday Blitz June 27 Late 2023"]
[White "Szente Varga, Fruzsina"]
[Black "Shapiro, Viktor"]
[WhiteFideId "712264"]
[BlackFideId "4175700"]
[WhiteElo "2318"]
[BlackElo "2487"]
[Result "0-1"]
[Round "10"]
[TimeControl "180+2"]
[Date "2023.06.27"]
[WhiteClock "0:00:01"]
[BlackClock "0:00:30"]
[Board "91"]

1. e4 {[%clk 0:03:00]}  Nf6 {[%clk 0:02:59]} 2. e5 {[%clk 0:03:00]}  Nd5 {[%clk 0:02:58]} 3. d4 {[%clk 0:03:01]}  d6 {[%clk 0:02:59]} 4. Bc4 {[%clk 0:02:54]}  dxe5 {[%clk 0:02:56]} 5. dxe5 {[%clk 0:02:52]}  c6 {[%clk 0:02:56]} 6. Ne2 {[%clk 0:02:50]}  Bf5 {[%clk 0:02:46]} 7. O-O {[%clk 0:02:45]}  e6 {[%clk 0:02:46]} 8. Ng3 {[%clk 0:02:43]}  Bg6 {[%clk 0:02:46]} 9. f4 {[%clk 0:02:25]}  Bc5+ {[%clk 0:02:45]} 10. Kh1 {[%clk 0:02:24]}  Qh4 {[%clk 0:02:43]} 11. Bxd5 {[%clk 0:02:11]}  cxd5 {[%clk 0:02:41]} 12. f5 {[%clk 0:02:11]}  Nc6 {[%clk 0:02:28]} 13. Rf4 {[%clk 0:01:56]}  Qh6 {[%clk 0:02:13]} 14. Ra4 {[%clk 0:01:39]}  Be3 {[%clk 0:02:08]} 15. Bxe3 {[%clk 0:01:01]}  Qxe3 {[%clk 0:02:07]} 16. fxg6 {[%clk 0:01:02]}  hxg6 {[%clk 0:02:07]} 17. Ra3 {[%clk 0:01:02]}  Qxe5 {[%clk 0:01:58]} 18. Nd2 {[%clk 0:00:49]}  O-O-O {[%clk 0:01:44]} 19. Rb3 {[%clk 0:00:36]}  Rh4 {[%clk 0:01:10]} 20. Qe1 {[%clk 0:00:20]}  Rdh8 {[%clk 0:01:05]} 21. h3 {[%clk 0:00:20]}  Qc7 {[%clk 0:00:55]} 22. Nf3 {[%clk 0:00:20]}  Rc4 {[%clk 0:00:53]} 23. Rc3 {[%clk 0:00:20]}  Rxc3 {[%clk 0:00:50]} 24. Qxc3 {[%clk 0:00:21]}  Qxg3 {[%clk 0:00:50]} 25. Qxg7 {[%clk 0:00:15]}  Rxh3+ {[%clk 0:00:43]} 26. gxh3 {[%clk 0:00:16]}  Qxf3+ {[%clk 0:00:43]} 27. Kh2 {[%clk 0:00:16]}  Qf2+ {[%clk 0:00:43]} 28. Kh1 {[%clk 0:00:17]}  Nd4 {[%clk 0:00:36]} 29. Qf8+ {[%clk 0:00:11]}  Kd7 {[%clk 0:00:36]} 30. Qb8 {[%clk 0:00:06]}  Ne2 {[%clk 0:00:30]} 31. Qxb7+ {[%clk 0:00:06]}  Ke8 {[%clk 0:00:31]} 32. Qc8+ {[%clk 0:00:05]}  Ke7 {[%clk 0:00:31]} 33. Qc7+ {[%clk 0:00:05]}  Kf8 {[%clk 0:00:30]} 34. Qd6+ {[%clk 0:00:03]}  Kg7 {[%clk 0:00:30]} 35. Qe5+ {[%clk 0:00:04]}  f6 {[%clk 0:00:30]} 36. Qc7+ {[%clk 0:00:04]}  Kh6 {[%clk 0:00:30]} 37. Rg1 {[%clk 0:00:01]}  Qxg1# {[%clk 0:00:30]} 0-1


[Site "https://www.chess.com"]